Cogmind - Beta 14 @@@ ROGUE MODE // 2024.08.30 @ 05:44:11 Player: Daffa0360 Result: Destroyed self with Grenade Launcher Performance ------------- Evolutions (0) 0 Regions Visited (2) 400 Robots Destroyed (23) 115 Value Destroyed (568) 568 Prototype IDs (11) 220 Alien Tech Used (0) 0 Bonus (0) 0 TOTAL SCORE: 1303 Bonus ------- None Cogmind --------- Core Integrity 0/250 Matter 275/300 Energy 250/250 System Corruption 0% Temperature Cool (0) Movement Rolling (120) Ox1 Location -10/Subcaves Parts ------- > --- POWER (1) -------- Ion Engine > --- PROPULSION (2) --- Makeshift Leg Subdweller Monowheel > --- UTILITY (2) ------ Small Storage Unit Makeshift Light Armor Plating > --- WEAPON (2) ------- Subdweller Laser Grenade Launcher > --- INVENTORY (8) ---- Arachnoskeleton Seismic Detector Hacking Suite Subdweller Shrapnel Launcher Dirty Datajack (20) Peak State ------------ > --- POWER ------------ Ion Engine > --- PROPULSION ------- Makeshift Leg Subdweller Monowheel > --- UTILITY ---------- Small Storage Unit Makeshift Light Armor Plating > --- WEAPON ----------- Riot Gun Subdweller Laser > --- INVENTORY -------- Arachnoskeleton Seismic Detector Hacking Suite Grenade Launcher Subdweller Shrapnel Launcher Dirty Datajack [Rating: 20] Favorites ----------- Power Ion Engine Engine Ion Engine Power Core Light Nuclear Core Propulsion Compact Wheel Treads Light Treads Leg Makeshift Leg Wheel Compact Wheel Utility Small Storage Unit Device Seismic Detector Storage Small Storage Unit Protection Makeshift Light Armor Plating Weapon Mining Laser Energy Gun Riot Gun Ballistic Gun Assault Rifle Launcher Grenade Launcher Special Weapon Mining Laser Build | -11 -10 -10 ------- Run | Yrd Mat Sub Slots Evolved . | . . . Power . | . . . Propulsion . | . . . Utility . | . . . Weapon . | . . . Parts Attached 25 | 3 9 13 Power 2 | . 2 . Engine 1 | . 1 . Core 1 | . 1 . Reactor . | . . . Propulsion 7 | 2 1 4 Treads 2 | . . 2 Leg 1 | . . 1 Wheel 4 | 2 1 1 Hover . | . . . Flight . | . . . Utility 4 | 1 2 1 Device 3 | 1 2 . Storage . | . . . Processor . | . . . Hackware . | . . . Protection 1 | . . 1 Artifact . | . . . Weapon 12 | . 4 8 Energy Gun 5 | . 2 3 Energy Cannon . | . . . Ballistic Gun 1 | . . 1 Ballistic Cannon . | . . . Launcher 2 | . . 2 Special Weapon 4 | . 2 2 Impact Weapon . | . . . Slashing Weapon . | . . . Piercing Weapon . | . . . Special Melee Weapon . | . . . Unidentified Prototypes . | . . . Parts Lost 3 | . 2 1 Power 2 | . 2 . Propulsion . | . . . Utility . | . . . Weapon 1 | . . 1 Highest Loss Streak 1 | . 1 1 To Critical Strikes . | . . . Average Slot Usage (%) 97 | . 95 99 Engine 9 | . 2 14 Core 3 | . 7 . Treads 5 | . . 8 Leg 2 | . . 3 Wheel 20 | . 28 15 Device 12 | . 14 11 Storage 14 | . 14 14 Protection 1 | . . 2 Energy Gun 17 | . 17 17 Ballistic Gun 2 | . 4 1 Special Weapon 6 | . 5 7 Peak Build Rating 20 | 9 10 20 Average Rating 10 | 6 8 12 On Entrance 7 | 6 9 7 Naked Turns . | . . . Heaviest Build 21 | 13 15 21 Greatest Support 26 | 26 26 26 Greatest Overweight (x) 1 | . . 1 Average Overweight (x) . | . . . Largest Inventory Capacity 8 | 8 8 8 Average Capacity 8 | 8 8 8 Most Carried 8 | 8 8 8 Average Carried 7 | 6 7 7 Final Capacity 8 | 8 8 8 Final Carried 7 | 6 7 7 Class Distribution -------------------- 93% | Mutant 6% | Derelict-Mutant Dominant Class ---------------- Mutant | -10/Materials Mutant | -10/Subcaves Resources | -11 -10 -10 ----------- Run | Yrd Mat Sub Matter Collected 627 | 275 145 207 Remotely . | . . . Salvage Created 772 | 180 245 347 Parts 36 | 12 8 16 Haulers Intercepted . | . . . Recyclers Shooed . | . . . Parts Field Recycled . | . . . Retrieved Matter . | . . . Parts Self-Destructed 11 | . . 11 Prevented . | . . . Kills | -11 -10 -10 ------- Run | Yrd Mat Sub Combat Hostiles Destroyed 15 | . 6 9 Guns 11 | . 6 5 AOE 4 | . . 4 Classes Destroyed 6 | 2 3 1 Tunneler 5 | 5 . . Recycler 2 | 1 1 . Operator 1 | . 1 . Swarmer 3 | . 3 . Grunt 3 | . 3 . Subdweller 9 | . . 9 Best Kill Streak 3 | 3 3 2 Combat Bots Only 2 | . 2 2 Max Kills in Single Turn 2 | 1 1 2 Gunslinging . | . . . Exploded 2 | . . 2 Melee . | . . . Uniques/NPCs Destroyed . | . . . Combat | -11 -10 -10 -------- Run | Yrd Mat Sub Hostile Shots Fired 68 | . 39 29 Missed 11 | . 5 6 Damage Taken 886 | . 368 518 Core 252 | . 65 187 Absorbed by Shields . | . . . Core Remaining (%) 100 | 100 . . Volleys Fired 96 | 15 53 28 Largest 2 | 2 2 2 Hottest 150 | 70 100 150 Shots Fired 163 | 30 89 44 Gun 133 | 30 72 31 Cannon . | . . . Launcher 5 | . . 5 Special 25 | . 17 8 Kinetic 54 | 15 32 7 Thermal 88 | 15 57 16 Explosive 5 | . . 5 Electromagnetic 16 | . . 16 Robot Hit Streak 13 | 5 8 13 Robot Miss Streak 4 | 3 4 2 Penetration Max . | . . . Secondary Targets . | . . . Shots Hit Robots 76 | 16 39 21 Core Hits 38 | 7 14 17 Critical Kills . | . . . Critical Parts Destroyed . | . . . Critical Strikes 2 | 2 . . Burn 2 | 2 . . Melee Attacks . | . . . Impact . | . . . Slashing . | . . . Piercing . | . . . Sneak Attacks . | . . . Combat Hostiles . | . . . Follow-up Attacks . | . . . Damage Inflicted 1326 | 229 491 606 Guns 1014 | 229 491 294 Cannons . | . . . Explosions 312 | . . 312 Melee . | . . . Ramming . | . . . Kinetic 353 | 77 222 54 Thermal 497 | 152 269 76 Explosive 312 | . . 312 Electromagnetic 164 | . . 164 Impact . | . . . Slashing . | . . . Piercing . | . . . Highest Corruption . | . . . Average Corruption . | . . . Corruption Purged . | . . . Corruption Blocked . | . . . Overload Shots . | . . . Overflow Damage . | . . . Projectiles . | . . . Explosions . | . . . Melee . | . . . Knockbacks . | . . . Impact . | . . . Kinetic . | . . . Secondary . | . . . Self-Inflicted Damage 23 | . . 23 Shots 1 | . . 1 Rammed . | . . . Targets Rammed . | . . . Kicked . | . . . Crushed . | . . . Highest Temperature 147 | 90 147 9 Average Temperature 36 | 34 41 3 Received Heat Transfer 240 | . 144 96 Siege Activations . | . . . Robots Corrupted . | . . . Combat Hostiles . | . . . Parts Fried . | . . . Impact Corruptions . | . . . Robots Melted . | . . . Combat Hostiles . | . . . Parts Melted 1 | 1 . . Heat Transferred 1470 | 592 778 100 Parts Sabotaged . | . . . Parts Stolen . | . . . Parts Stripped . | . . . Power Chain Reactions . | . . . Alert | -11 -10 -10 ------- Run | Yrd Mat Sub Peak Influence 273 | 30 273 . Initial 19 | . 19 . Average 98 | 15 110 . Maximum Alert Level 1 | . 1 . Low Security (%) 77 | 100 73 . Level 1 22 | . 26 . Level 2 . | . . . Level 3 . | . . . Level 4 . | . . . Level 5 . | . . . High Security . | . . . Max Security . | . . . Squads Dispatched 1 | . 1 . Investigation . | . . . Extermination . | . . . Reinforcement 1 | . 1 . Assault . | . . . Garrison . | . . . Intercept . | . . . Searches Triggered . | . . . Construction Impeded . | . . . Haulers Reinforced . | . . . Active Scanning Responses . | . . . Cargo Convoy Interrupts . | . . . Stealth | -11 -10 -10 --------- Run | Yrd Mat Sub Distress Signals 3 | . 3 . Communications Jammed . | . . . Distress Signals . | . . . Times Spotted 22 | . 13 9 Peak Tracking Total 4 | . 4 2 Tactical Retreats 2 | . 2 . Traps | -11 -10 -10 ------- Run | Yrd Mat Sub Traps Triggered . | . . . Indirectly . | . . . Trap Hack Attempts . | . . . Triggered . | . . . Disarmed . | . . . Reprogrammed . | . . . Reused . | . . . Traps Extracted . | . . . Installed . | . . . Triggered . | . . . Machines | -11 -10 -10 ---------- Run | Yrd Mat Sub Machines Disabled 1 | . . 1 Max in Single Turn 1 | . . 1 Machines Repaired . | . . . Machines Dismantled . | . . . Machines Sabotaged . | . . . Overloaded Fab Kills . | . . . Hacking | -11 -10 -10 --------- Run | Yrd Mat Sub Machines Accessed 8 | . 6 2 Terminals 5 | . 5 . Fabricators . | . . . Repair Stations 1 | . 1 . Recycling Units . | . . . Scanalyzers . | . . . Garrison Access . | . . . Total Hacks 22 | . 16 6 Successful 11 | . 5 6 Failed 11 | . 11 . Catastrophic 2 | . 2 . Database Lockouts . | . . . Manual 6 | . 6 . Terminals 14 | . 14 . Fabricators . | . . . Repair Stations 2 | . 2 . Recycling Units . | . . . Scanalyzers . | . . . Garrison Access . | . . . Terminal Hacks 10 | . 4 6 Record 5 | . . 5 Unreport Threat 1 | . 1 . Locate Traps 1 | . 1 . Security Status 1 | . 1 . Registered Prototypes 1 | . 1 . Derelict Proto ID Bank 1 | . . 1 Fabricator Hacks . | . . . Repair Station Hacks 1 | . 1 . Scan Component 1 | . 1 . Recycling Unit Hacks . | . . . Scanalyzer . | . . . Garrison Access Hacks . | . . . Unauthorized Hacks . | . . . Terminals . | . . . Fabricators . | . . . Repair Stations . | . . . Recycling Units . | . . . Scanalyzers . | . . . Garrison Access . | . . . Data Cores Recovered . | . . . Used . | . . . Hacking Detections 5 | . 5 . Full Trace Events 1 | . 1 . Feedback Events . | . . . Feedback Blocked . | . . . Robot Schematics Acquired . | . . . Robots Built . | . . . Authchips . | . . . Time . | . . . Total Robot Build Rating . | . . . Part Schematics Acquired . | . . . Parts Built . | . . . Authchips . | . . . Time . | . . . Total Part Build Rating . | . . . Parts Repaired . | . . . Time . | . . . Parts Recycled . | . . . Recycled Matter . | . . . Retrieved Matter . | . . . Retrieved Components . | . . . Parts Scanalyzed . | . . . Part Schematics Acquired . | . . . Parts Damaged . | . . . Bothacking | -11 -10 -10 ------------ Run | Yrd Mat Sub Used RIF Installer . | . . . Robots Hacked . | . . . Non-combat . | . . . Combat . | . . . Robot Hacks Applied . | . . . Relay Couplers Released . | . . . Fabnet Peak Effective % . | . . . Robots Rewired . | . . . Allies Hacked . | . . . Hacks Repelled . | . . . Allies | -11 -10 -10 -------- Run | Yrd Mat Sub Total Allies . | . . . Largest Group . | . . . Highest-Rated Group . | . . . Highest-Rated Ally . | . . . Total Orders . | . . . Ally Attacks . | . . . Total Damage . | . . . Kills . | . . . Allies Corrupted . | . . . Allies Melted . | . . . Intel | -11 -10 -10 ------- Run | Yrd Mat Sub Robot Analysis Total . | . . . Derelict Logs Recovered 1 | . . 1 Drone Launches . | . . . Drone Recoveries . | . . . Exploration | -11 -10 -10 ------------- Run | Yrd Mat Sub Turns Passed 2204 | 131 905 1168 Spaces Moved 1243 | 55 345 843 Core . | . . . Treads 151 | . . 151 Legs 157 | 39 . 118 Wheels 935 | 16 345 574 Hover . | . . . Flight . | . . . Fastest Speed 90 | 90 90 90 Average Speed 112 | 111 90 122 Slowest Speed 210 | 120 90 210 Overloaded Moves . | . . . Propulsion Burnouts . | . . . Robots Hopped . | . . . Cave-ins Triggered . | . . . Exploration Rate (%) 39 | 3 69 46 Regions Visited 2 Branch Regions 1 Pre-discovered Areas . | . . . Known Exits Taken . | . . . Unknown Exits Taken 2 | 1 1 . Scrap Searched 3 | . . 3 Spaces Dug 20 | . 9 11 Terrain Destroyed 29 | . 10 19 Melee . | . . . Projectile 10 | . 10 . AOE 19 | . . 19 Terrain Rammed . | . . . Walls Destroyed . | . . . Machines Disabled . | . . . Actions | -11 -10 -10 --------- Run | Yrd Mat Sub Total 1835 | 95 816 924 Wait 442 | 19 401 22 Move 1241 | 54 344 843 Hop . | . . . Pick Up 13 | 2 4 7 Fast Attach 5 | 1 2 2 Attach 6 | 2 3 1 Detach 1 | . 1 . Swap 14 | . 4 10 Drop 17 | 2 4 11 Fire 96 | 15 53 28 Melee . | . . . Ram . | . . . Kick . | . . . Crush . | . . . Escape Stasis . | . . . Rewire . | . . . Trap . | . . . Miscellaneous . | . . . Route ------- -11/Scrapyard -10/Materials (discovered 4 exits: [*Mat] / [*Min x2] / *Sub) -10/Subcaves (discovered 2 exits: [*Mat] / Rec) History --------- Turn | Location | Event 1 | -11/Scrapyard | Discovered new exit (range 2) 132 | -11/Scrapyard | Entered Materials 199 | -10/Materials | Discovered new exit (range 12) 318 | -10/Materials | Build established: Mutant 698 | -10/Materials | Discovered new exit (range 10) 898 | -10/Materials | Discovered new exit (range 14) 1020 | -10/Materials | Discovered new exit (range 3) 1037 | -10/Materials | Entered Subcaves 1071 | -10/Subcaves | Shifting Twisted Machinery released Battle Rifle 1074 | -10/Subcaves | Discovered new exit (range 10) 1077 | -10/Subcaves | Shifting Twisted Machinery released Sub. Shrapnel Launcher 1172 | -10/Subcaves | Disturbed a concealed Subdweller 1316 | -10/Subcaves | Visited Clippyterm 1319 | -10/Subcaves | Identified exit to Recycling 1319 | -10/Subcaves | Learned Research machine intel 1459 | -10/Subcaves | Learned Materials garrison access intel 1474 | -10/Subcaves | Ambushed by Subdwellers from Twisted Machinery 1480 | -10/Subcaves | Core integrity fell below 50% 1542 | -10/Subcaves | Visited 4L-MR0's lab 1559 | -10/Subcaves | Found Arachnoskeleton 1603 | -10/Subcaves | Shifting Twisted Machinery released Riot Gun 1611 | -10/Subcaves | Shifting Twisted Machinery released Barrage Gun 2085 | -10/Subcaves | Core integrity fell below 20% 2205 | -10/Subcaves | Destroyed self with Grenade Launcher Last Messages --------------- 01828_ Dropped Com. Wheel. 01833_ Acquired Sub. Laser. 01838_ J7-SV9(R) destroyed. 01842_ Acquired 37 matter. 01883_ Subatomizers dissect the Hcp. Matter Pod. 01906_ Dropped Lgt. Treads. 01907_ Subatomizers dissect the Wheel. 01907_ Acquired Mak. Leg. 01931_ Acquired 10 matter. 02006_ PB-2IQ(R) destroyed. 02017_ QH-Y1V(R) destroyed. 02022_ Acquired 10 matter. 02026_ Dropped Mining Laser. 02027_ Acquired Dirty Datajack. 02101_ SQ-09D(R) destroyed. 02154_ Riot Gun destroyed. 02168_ CT-9KI(R) destroyed. 02168_ XC-SGF(R) destroyed. 02181_ Acquired 25 matter. Map ----- +----------------------------------------------------+ | ?????????????????????????????????????????????????? | | ?????????????????????????????????????????????????? | | ?????????????????????????????????????????????????? | | ??????????????????????????????????????????#####??? | | ??????????????????????????????????????????? ##? | | ??????????????????????????????????????????? ? | | ???????????????????????????????????????????? ? | | ???????????????????????????????????? ??????# ? | | ?????????????????????????????????? ??????# ? | | ??????????????????????????????????? ###????#""## | | ??????????????????????????????????? ???##"" # | | ???????????????????????????????????? ???# "" | | ???????????????????????????????????? ????#" | | ???????????????????????##???????????# ??### " | | ????????????????????? ## #####??????# ?##" " " | | ????????????????????? #??#### ?#""""" | | ???????????????????? #??? "" #?###"" " | | ????????????????????? "?"??"" #####" " | | ?????????????????????? ""?????# ##" " | | ??????????????????????? ??????# " #### | | ????????????????????????? #??????## ##??? | | ??????????????????????????# ##??????# #???? | | ??????????????????????????#" #####?## ## ##???? | | ?????????????????????????## " ### ####????? | | ????????????????????????##" " # #??#???? | | ?????????????????????####@" " ## ##??? | | ?????????????????????# " ##?? | | ????????????????????? ## %! %#?? | | ????????????????????# ### [ #?? | | ????????????????????## ### #?? | | ?????????????????????### ##?# ####?? | | ???????????????????????####??### #### % ##????? | | ???????????????????????????????# ##??#####???### | | ???????????????????????????????# ##???????###?# | | ???????????????????????????????# #???????## ### | | ?????????????????????????????? #?????### # # | | ????????????????????????>???? ######## | | ???????????????????????????? ### # # | | ??????????????????????????? #### ##### | | ?????????????????????????? ???# # # #### | | ?????????????????????????""" ???## ### ##?# | | ?????????????????????????###????# ### #" | | ????????????????????????????????# # ## | | ???????????????????????????###### % #?? | | ???????????????????????????# % #?? | | ???????????????????????????## #### ##?? | | ????????????????????????????# ##?### ##??? | | ???????????????????????????## #???## ##???? | | ???????????????????????????# ##????# #???? | | ???????????????????????????## #????? ??#???? | +----------------------------------------------------+ Best States ------------- Heat Dissipation 25 Energy Generation 14 Energy Capacity 250 Matter Stores 300 Matter Capacity 300 Sight Range 16 Terrain Scan Range 16 Terrain Scan Density 10 Armor Coverage 100 Evasion (%) 55 Recoil Reduction 1 Item Schematics ----------------- None Robot Schematics ------------------ None Fabricated ------------ Nothing Alien Tech Used ----------------- None Achievements -------------- None Challenges ------------ None Game ------ Seed CannonImprinterDoublenader Manual? 0 Play Time 00:16:27 Cumulative 78.4 hours Start 2024.08.30 @ 05:28:28 End 2024.08.30 @ 05:44:11 Sessions 1 Manual Loads 0 Difficulty Rogue Special Mode None Game No. 132 Rogue 128 Adventurer 4 Explorer 0 Win Type - Total 0 Types 0/0/0/0/0/0/0/0/0 Lore% 37 Gallery% 46 Achievement% 35 Wizard Run 0 Options --------- Layout 2 ASCII 0 Keyboard 0 Movement Mouse Keybinds 0 Fullscreen 2 Font 24/Smallcaps Map View 50x44 Zoom Use 0% Tactical HUD 1 Map Filters NONE Filters NONE Steam 1 RUN: 03a04b09-fa9c-4aed-9d5e-32cf39632b62